bitfinex/quotes_BTCUSD_20230113
["timestamp","ask_amount","ask_price","bid_price","bid_amount"]
[1673578946905,0.06567991,18838.0,18837.0,1.92983516]
[1673578947165,0.06567991,18838.0,18837.0,2.32656722]
[1673578948405,0.06557528,18838.0,18837.0,2.32656722]
[1673578948683,0.06557528,18838.0,18837.0,1.55009178]
[1673578948931,0.06557528,18838.0,18837.0,1.62983516]
[1673578949177,0.06557528,18838.0,18837.0,1.95474722]
[1673578949426,0.20647528,18838.0,18837.0,1.46574064]
[1673578949637,0.20647528,18838.0,18837.0,1.30694668]
[1673578950403,0.20647528,18838.0,18837.0,1.14835499]
[1673578950898,0.20647528,18838.0,18837.0,1.46574064]
[1673578951660,0.20647528,18838.0,18837.0,1.30697787]
[1673578952908,0.20647528,18838.0,18837.0,1.47849899]
[1673578953661,0.20647528,18838.0,18837.0,1.79588464]
[1673578955382,0.20647528,18838.0,18837.0,1.14835499]
[1673578955656,0.20647528,18838.0,18837.0,1.30698753]
[1673578956872,0.20647528,18838.0,18837.0,1.63713153]
[1673578957824,0.20647528,18838.0,18837.0,1.30698753]
[1673578961364,0.20647528,18838.0,18837.0,1.14835499]
[1673578961604,0.20647528,18838.0,18837.0,1.48995116]
[1673578961854,0.20647528,18838.0,18837.0,1.17256551]
[1673578962313,0.20647528,18838.0,18837.0,1.33114226]
[1673578963605,0.20647528,18838.0,18837.0,1.48995116]
[1673578963849,0.20647528,18838.0,18837.0,1.97895774]
[1673578964097,0.20647528,18838.0,18837.0,1.82008863]
[1673578964583,0.20647528,18838.0,18837.0,1.97895774]
[1673578965068,0.20647528,18838.0,18837.0,2.24438774]
[1673578965803,0.20647528,18838.0,18837.0,1.51751168]
[1673578966536,0.20647528,18838.0,18837.0,1.91424374]
[1673578967030,0.20647528,18838.0,18837.0,2.24438774]
[1673578968028,0.20647528,18838.0,18837.0,1.75537437]
[1673578969563,0.20647528,18838.0,18837.0,1.59661012]
[1673578969811,0.20647528,18838.0,18837.0,0.19183192]
[1673578970053,0.71675724,18838.0,18837.0,0.19183192]
[1673578971342,0.71675724,18838.0,18837.0,0.03321052]
[1673578971584,0.71675724,18838.0,18837.0,0.19183192]
[1673578971828,0.71675724,18838.0,18837.0,0.03321052]
[1673578973591,0.71675724,18838.0,18837.0,0.19183192]
[1673578974324,0.71675724,18838.0,18837.0,0.03321052]
[1673578975313,1.04690124,18838.0,18837.0,0.03321052]
[1673578976067,0.71675724,18838.0,18837.0,0.03321052]
[1673578977809,0.85765724,18838.0,18837.0,0.03321052]
[1673578978057,1.34668283,18838.0,18837.0,0.03321052]
[1673578981045,0.85765724,18838.0,18837.0,0.03321052]
[1673578982561,1.18780124,18838.0,18837.0,0.03321052]
[1673578983072,0.85765724,18838.0,18837.0,0.03321052]
[1673578983550,1.18780124,18838.0,18837.0,0.03321052]
[1673578984099,1.34668283,18838.0,18837.0,0.03321052]
[1673578984338,1.18780124,18838.0,18837.0,0.03321052]
[1673578984822,1.34668283,18838.0,18837.0,0.03321052]
[1673578985873,1.18780124,18838.0,18837.0,0.03321052]
[1673578988800,1.04690124,18838.0,18837.0,0.03321052]
[1673578990060,1.14690124,18838.0,18837.0,0.03321052]
[1673578993023,0.81675724,18838.0,18837.0,0.03321052]
[1673578993485,1.14690124,18838.0,18837.0,0.03321052]
[1673578994856,1.30578283,18838.0,18837.0,0.03321052]
[1673578995386,1.54410522,18838.0,18837.0,0.03321052]
[1673578996184,1.30578283,18838.0,18837.0,0.03321052]
[1673578997677,0.79550087,18838.0,18837.0,0.03321052]
[1673578997934,1.03382326,18838.0,18837.0,0.03321052]
[1673578998501,1.49248619,18838.0,18837.0,0.03314724]
[1673578998763,1.09528247,18838.0,18837.0,0.03314724]
[1673578999036,1.33370097,18838.0,18837.0,0.03314724]
[1673579000696,2.01048489,18838.0,18837.0,0.03314724]
[1673579000946,0.1,18837.0,18832.0,2.62708032]
[1673579001193,0.1409,18833.0,18832.0,2.62708032]
[1673579001444,0.471044,18833.0,18832.0,0.00098032]
[1673579001689,0.1409,18833.0,18831.0,0.52660684]
[1673579001937,0.1409,18832.0,18831.0,0.52660684]
[1673579002178,0.2409,18834.0,18831.0,0.52660684]
[1673579002427,0.2409,18834.0,18832.0,0.002]
[1673579002428,0.066,18833.0,18832.0,0.002]
[1673579002677,0.066,18833.0,18831.0,0.00578152]
[1673579002934,0.071,18833.0,18831.0,0.01778152]
[1673579003187,0.071,18833.0,18831.0,0.59696632]
[1673579003683,0.72651301,18834.0,18831.0,0.58496632]
[1673579003930,0.59061301,18834.0,18832.0,0.1]
[1673579004434,0.005,18833.0,18832.0,0.1]
[1673579004930,0.005,18833.0,18832.0,0.002]
[1673579005153,0.65161301,18834.0,18831.0,0.68496632]
[1673579005154,0.58561301,18834.0,18831.0,0.68496632]
[1673579005410,0.066,18833.0,18832.0,0.102]
[1673579006653,0.066,18833.0,18832.0,0.002]
[1673579010452,0.83348376,18833.0,18832.0,0.002]
[1673579011661,1.16362776,18833.0,18832.0,0.002]
[1673579013117,0.83348376,18833.0,18832.0,0.002]
[1673579014853,0.76832246,18833.0,18832.0,0.002]
[1673579016854,0.066,18833.0,18832.0,0.66678914]
[1673579017098,0.066,18833.0,18832.0,0.99693314]
[1673579017346,0.066,18833.0,18832.0,1.34733808]
[1673579017641,0.066,18833.0,18832.0,2.06877986]
[1673579017898,0.066,18833.0,18832.0,2.56851167]
[1673579018145,0.066,18833.0,18832.0,2.40989027]
[1673579018426,0.066,18833.0,18832.0,2.72727592]
[1673579018663,0.066,18833.0,18832.0,2.13430678]
[1673579018908,0.03248375,18833.0,18832.0,2.43407615]
[1673579019220,0.03248375,18833.0,18832.0,2.1166905]
[1673579019402,0.53890369,18838.0,18833.0,0.1]
[1673579019643,0.53680501,18837.0,18836.0,0.1401]
[1673579019883,0.53680501,18837.0,18836.0,0.470165]
[1673579020134,0.53680501,18837.0,18836.0,0.1401]
[1673579020879,0.58780501,18837.0,18836.0,0.1461]
[1673579021599,0.58780501,18837.0,18836.0,0.476244]
[1673579022088,0.58780501,18837.0,18836.0,0.006]
[1673579023392,0.051,18837.0,18836.0,0.006]
[1673579023642,0.051,18837.0,18836.0,0.07782]
[1673579023888,0.051,18837.0,18836.0,0.61606821]
[1673579024130,0.051,18837.0,18836.0,1.08711221]
[1673579024652,0.051,18837.0,18836.0,1.18711221]
[1673579027646,0.051,18837.0,18836.0,1.08711221]
[1673579031838,0.051,18837.0,18836.0,1.01529221]
[1673579034049,0.051,18837.0,18836.0,0.68514821]
[1673579037246,0.051,18837.0,18836.0,1.01529221]
[1673579037738,0.051,18837.0,18836.0,0.68514821]
[1673579038470,0.051,18837.0,18836.0,0.78514821]
[1673579038730,0.051,18837.0,18836.0,1.11529221]
[1673579039236,0.051,18837.0,18836.0,0.78514821]
[1673579039719,0.051,18837.0,18836.0,1.11529221]
[1673579040464,0.051,18837.0,18836.0,1.01529221]
[1673579040715,0.051,18837.0,18836.0,0.68514821]
[1673579041449,0.051,18837.0,18836.0,1.01529221]
[1673579041963,0.051,18837.0,18836.0,0.68514821]
[1673579042471,0.05089913,18837.0,18836.0,0.68514821]
[1673579043982,0.05089913,18837.0,18836.0,0.54343821]
[1673579045000,0.05089913,18837.0,18836.0,0.00519]
[1673579046224,0.65393834,18837.0,18836.0,0.00519]
[1673579047886,0.62801764,18837.0,18836.0,0.00519]
[1673579050961,0.02497843,18837.0,18836.0,0.10519]
[1673579051215,0.02497843,18837.0,18836.0,0.70777814]
[1673579051465,0.02497843,18837.0,18836.0,0.60777814]
[1673579056188,0.02497843,18837.0,18836.0,1.00363274]
[1673579057432,0.02497843,18837.0,18836.0,0.76611998]
[1673579060631,0.71364072,18837.0,18836.0,0.76611998]
[1673579065946,0.71364072,18837.0,18836.0,0.16353184]
[1673579067478,1.91244248,18837.0,18836.0,0.00519]
[1673579067734,2.07138452,18837.0,18836.0,0.00519]
[1673579068226,1.75861947,18837.0,18836.0,0.00519]
[1673579068476,2.07652073,18837.0,18836.0,0.00519]
[1673579068735,1.75830861,18837.0,18836.0,0.00519]
[1673579070248,2.07652809,18837.0,18836.0,0.00519]
[1673579070497,2.07652809,18837.0,18836.0,0.02187204]
[1673579071473,1.75830861,18837.0,18836.0,0.02187204]
[1673579071955,1.5624319,18837.0,18836.0,0.02187204]
[1673579072222,1.96004564,18837.0,18836.0,0.02177217]
[1673579072713,2.27797657,18837.0,18836.0,0.02177217]
[1673579072960,1.96004564,18837.0,18836.0,0.02177217]
[1673579073470,2.27797745,18837.0,18836.0,0.02177217]
[1673579073708,1.96004564,18837.0,18836.0,0.02177217]
[1673579074207,2.27796175,18837.0,18836.0,0.02177217]
[1673579075182,2.2749388,18837.0,18836.0,0.02177217]
[1673579075429,1.74343333,18837.0,18836.0,0.02177217]
[1673579075647,2.27494139,18837.0,18836.0,0.02177217]
[1673579076240,2.07339303,18837.0,18836.0,0.02177217]
[1673579076437,1.14427123,18837.0,18836.0,0.02177217]
[1673579077669,1.38257675,18837.0,18836.0,0.02177217]
[1673579078170,1.70376545,18837.0,18836.0,0.02177217]
[1673579078427,1.78298792,18837.0,18836.0,0.02177217]
[1673579078682,1.38256424,18837.0,18836.0,0.02177217]
[1673579078921,2.04403533,18837.0,18836.0,0.02177217]
[1673579079174,1.38256424,18837.0,18836.0,0.02177217]
[1673579081688,1.58622957,18837.0,18836.0,0.02177217]
[1673579083053,2.07454947,18837.0,18836.0,0.02177217]
[1673579083279,1.38256424,18837.0,18836.0,0.02177217]
[1673579083480,1.48256424,18837.0,18836.0,0.02177217]
[1673579084462,1.16464813,18837.0,18836.0,0.02177217]
[1673579084724,1.32345604,18837.0,18836.0,0.02177217]
[1673579084967,1.16464813,18837.0,18836.0,0.02177217]
[1673579085468,1.48256424,18837.0,18836.0,0.02177217]
[1673579085715,2.08084964,18837.0,18836.0,0.02177217]
[1673579085954,1.92173877,18837.0,18836.0,0.02177217]
[1673579090495,1.68344576,18837.0,18836.0,0.02177217]
[1673579092172,1.68263576,18837.0,18836.0,0.02177217]
[1673579093698,1.32264337,18837.0,18836.0,0.02177217]
[1673579093961,1.87573259,18837.0,18836.0,0.02177217]
[1673579094434,1.82180546,18837.0,18836.0,0.02177217]
[1673579094646,1.32264337,18837.0,18836.0,0.02177217]
[1673579094893,1.24346123,18837.0,18836.0,0.02177217]
[1673579095408,2.17385509,18837.0,18836.0,0.02177217]
[1673579095653,1.64107497,18837.0,18836.0,0.02177217]
[1673579095890,2.31090475,18837.0,18836.0,0.02177217]
[1673579096901,1.99298864,18837.0,18836.0,0.02177217]
[1673579097395,2.31077035,18837.0,18836.0,0.02177217]
[1673579097659,2.17372148,18837.0,18836.0,0.02177217]
[1673579100287,1.85593977,18837.0,18836.0,0.02177217]
[1673579101772,1.85593977,18837.0,18836.0,0.02024917]
[1673579102276,2.73009417,18837.0,18836.0,0.02024917]
[1673579104474,2.41216963,18837.0,18836.0,0.02024917]
[1673579105265,2.08126697,18837.0,18836.0,0.02024917]
[1673579105563,1.76664331,18837.0,18836.0,0.02024917]
[1673579105809,1.27749945,18837.0,18836.0,0.02024917]
[1673579106055,1.9043675,18837.0,18836.0,0.02024917]
[1673579106322,2.30198124,18837.0,18836.0,0.02024917]
[1673579106572,1.98530602,18837.0,18836.0,0.02024917]
[1673579107063,2.31620868,18837.0,18836.0,0.02024917]
[1673579107569,1.98530602,18837.0,18836.0,0.02024917]
[1673579107778,1.65516202,18837.0,18836.0,0.02024917]
[1673579108285,1.65516202,18837.0,18836.0,0.37145411]
[1673579108286,0.95853216,18837.0,18836.0,0.37145411]
[1673579108542,0.26287813,18837.0,18836.0,1.60159944]
[1673579108787,0.02409846,18837.0,18836.0,2.08545976]
[1673579109032,0.02409846,18837.0,18836.0,1.38213152]
[1673579109285,0.02409846,18837.0,18836.0,0.9849645]
[1673579109763,0.57737441,18838.0,18836.0,0.98139737]
[1673579110012,0.73655787,18838.0,18836.0,0.65125337]
[1673579110257,0.57737441,18838.0,18836.0,0.65125337]
[1673579110538,0.73655787,18838.0,18836.0,0.65125337]
[1673579110786,0.01,18837.0,18836.0,0.73325337]
[1673579111039,0.15918346,18837.0,18836.0,0.01668204]
[1673579111288,1.40224744,18837.0,18836.0,0.09868204]
[1673579111822,1.66896083,18837.0,18836.0,0.09868204]
[1673579112076,1.6688224,18837.0,18836.0,0.01668204]
[1673579112352,1.82817174,18837.0,18836.0,0.01668204]
[1673579112607,1.56145835,18837.0,18836.0,0.01668204]
[1673579113089,1.57145835,18837.0,18836.0,0.09868204]
[1673579115706,1.90236101,18837.0,18836.0,0.09868204]
[1673579115893,1.88634397,18837.0,18836.0,0.09868204]
[1673579116126,2.09057589,18837.0,18836.0,0.09868204]
[1673579116362,1.69296215,18837.0,18836.0,0.09868204]
[1673579116646,1.69296215,18837.0,18836.0,0.082]
[1673579116884,0.1,18836.0,18833.0,0.00099558]
[1673579117152,0.14,18834.0,18833.0,0.00099558]
[1673579117400,0.570144,18834.0,18833.0,0.00099558]
[1673579117644,0.570144,18834.0,18832.0,0.68268262]
[1673579117881,0.24,18834.0,18832.0,0.68268262]
[1673579118110,0.24,18834.0,18833.0,0.04]
[1673579118363,0.570144,18834.0,18833.0,0.04]
[1673579118595,1.2366656,18834.0,18833.0,0.04]
[1673579119089,1.2366656,18834.0,18831.0,1.35333479]
[1673579119353,0.9105216,18834.0,18833.0,0.04]
[1673579119574,1.2406656,18834.0,18833.0,0.04]
[1673579120065,1.2366656,18834.0,18831.0,0.94643479]
[1673579120323,0.330144,18833.0,18831.0,1.02143479]
[1673579120579,0.9165216,18834.0,18831.0,0.94643479]
[1673579120829,0.8205216,18834.0,18833.0,0.04]
[1673579121082,0.8205216,18834.0,18832.0,0.49802003]
[1673579121083,0.8105216,18834.0,18832.0,0.49802003]
[1673579121328,0.8105216,18834.0,18831.0,0.40294854]
[1673579121329,0.9205216,18834.0,18831.0,0.33965795]
[1673579121579,0.9205216,18834.0,18831.0,1.0293966]
[1673579121891,0.9205216,18834.0,18831.0,1.26768719]
[1673579122109,0.54562062,18833.0,18831.0,1.26768719]
[1673579122353,0.54562062,18833.0,18831.0,1.0293966]
[1673579122591,0.54562062,18833.0,18831.0,0.9293966]
[1673579122836,0.54553809,18833.0,18831.0,0.8543966]
[1673579125295,0.54553809,18833.0,18832.0,0.075]
[1673579126296,0.54553809,18833.0,18831.0,0.8543966]
[1673579126522,0.55553809,18833.0,18831.0,0.9293966]
[1673579126811,0.34090266,18833.0,18831.0,0.08078152]
[1673579127062,0.611944,18832.0,18831.0,0.08078152]
[1673579127300,0.77100169,18832.0,18831.0,0.00578152]
[1673579127549,0.77100169,18832.0,18831.0,0.08078152]
[1673579127550,0.87100169,18832.0,18831.0,0.08078152]
[1673579128041,0.430144,18832.0,18831.0,0.08078152]
[1673579128290,0.430144,18832.0,18831.0,0.00578152]
[1673579129280,0.434144,18832.0,18831.0,0.04578152]
[1673579129531,1.22837547,18832.0,18831.0,0.04578152]
[1673579130518,0.89823147,18832.0,18831.0,0.04578152]
[1673579130736,1.22837547,18832.0,18831.0,0.04578152]
[1673579132471,0.89823147,18832.0,18831.0,0.04578152]
[1673579133238,1.22837547,18832.0,18831.0,0.04578152]
[1673579133494,0.89823147,18832.0,18831.0,0.04578152]
[1673579133740,1.22837547,18832.0,18831.0,0.04578152]
[1673579134499,0.89823147,18832.0,18831.0,0.04578152]
[1673579134743,1.22837547,18832.0,18831.0,0.04578152]
[1673579135000,0.89823147,18832.0,18831.0,0.04578152]
[1673579135248,1.22837547,18832.0,18831.0,0.04578152]
[1673579135464,0.89823147,18832.0,18831.0,0.04578152]
[1673579135715,1.22837547,18832.0,18831.0,0.04578152]
[1673579136190,1.12837547,18832.0,18831.0,0.04578152]
[1673579136450,0.004,18832.0,18831.0,0.04578152]
[1673579138257,0.53670567,18832.0,18831.0,0.04578152]
[1673579143687,0.004,18832.0,18831.0,0.04578152]
[1673579143934,0.004,18832.0,18831.0,0.74684412]
[1673579144954,0.004,18832.0,18831.0,1.07698812]
[1673579145446,0.004,18832.0,18831.0,1.17698812]
[1673579149680,0.004,18832.0,18831.0,1.17785504]
[1673579151688,0.004,18832.0,18831.0,1.33673147]
[1673579156913,0.004,18832.0,18831.0,1.57502206]
[1673579157400,0.004,18832.0,18831.0,1.33673147]
[1673579157646,0.004,18832.0,18831.0,1.57502206]
[1673579157878,0.004,18832.0,18831.0,1.33673147]
[1673579158376,0.004,18832.0,18831.0,1.23673147]
[1673579158613,0.004,18832.0,18831.0,1.23586455]
[1673579158857,0.004,18832.0,18831.0,0.74684412]
[1673579159670,0.004,18832.0,18831.0,1.07698812]
[1673579160141,0.67201841,18833.0,18832.0,0.43182843]
[1673579161792,0.70201841,18833.0,18832.0,0.43482843]
[1673579162038,0.70201841,18833.0,18832.0,0.43569531]
[1673579162283,0.70201841,18833.0,18832.0,0.43482843]
[1673579164953,0.03,18833.0,18832.0,0.43482843]
[1673579170970,0.03,18833.0,18832.0,0.003]
[1673579171181,1.01737553,18833.0,18832.0,0.003]
[1673579171470,0.68723153,18833.0,18832.0,0.003]
[1673579174213,0.68723153,18833.0,18832.0,0.00274724]
[1673579179712,0.03,18833.0,18832.0,0.56772239]
[1673579179974,0.03,18833.0,18832.0,0.72659882]
[1673579181422,0.03,18833.0,18832.0,1.05674282]
[1673579181669,0.03,18833.0,18832.0,0.72659882]
[1673579182910,0.03,18833.0,18832.0,1.05674282]
[1673579183159,0.03,18833.0,18832.0,1.53264249]
[1673579183894,0.03,18833.0,18832.0,1.29503341]
[1673579184670,0.03,18833.0,18832.0,0.96488941]
[1673579184933,0.03,18833.0,18832.0,0.72659882]
[1673579186684,0.03,18833.0,18832.0,0.37192861]
[1673579186938,0.03,18833.0,18832.0,2.02908507]
[1673579187173,0.03,18833.0,18832.0,2.32908507]
[1673579187424,0.03,18833.0,18832.0,2.02908507]
[1673579187911,0.85791102,18836.0,18833.0,0.1]
[1673579187912,1.18881368,18836.0,18833.0,0.1]
[1673579188165,1.09649755,18836.0,18834.0,0.55383694]
[1673579188412,1.09649755,18836.0,18835.0,0.330086]
[1673579188660,0.85791102,18836.0,18835.0,0.330086]
[1673579188903,0.85791102,18836.0,18835.0,0.330144]
[1673579189148,0.69885333,18836.0,18834.0,0.29855494]
[1673579189399,0.70885333,18836.0,18834.0,0.29855494]
[1673579189650,0.69885333,18836.0,18835.0,0.330144]
[1673579189892,0.89291102,18836.0,18835.0,0.004]
[1673579190141,0.89291102,18836.0,18834.0,0.29855494]
[1673579190142,0.15905769,18836.0,18834.0,0.29855494]
[1673579190395,0.16305769,18836.0,18834.0,0.8677415]
[1673579190644,0.15905769,18836.0,18834.0,0.66888656]
[1673579190904,0.84749533,18836.0,18835.0,0.004]
[1673579191162,0.84749533,18836.0,18834.0,0.66888656]
[1673579191163,0.81249533,18836.0,18834.0,0.66888656]
[1673579191412,1.38198452,18836.0,18833.0,0.15885494]
[1673579191659,0.15905769,18835.0,18832.0,1.18474436]
[1673579191908,0.58996035,18835.0,18832.0,1.18474436]
[1673579192174,0.25905769,18835.0,18832.0,1.18474436]
[1673579192447,0.8434377,18835.0,18834.0,0.04]
[1673579192929,0.8534377,18835.0,18834.0,0.04]
[1673579193431,0.1,18834.0,18832.0,0.92736195]
[1673579193684,1.31298226,18835.0,18832.0,0.70556195]
[1673579193930,1.31698226,18835.0,18834.0,0.02]
[1673579194171,0.9843377,18835.0,18832.0,0.70556195]
[1673579194414,0.014,18834.0,18832.0,0.74956195]
[1673579194681,0.014,18834.0,18832.0,0.20382762]
[1673579194933,0.17305769,18834.0,18832.0,0.04497268]
[1673579195192,0.60558206,18833.0,18832.0,0.04497268]
[1673579195437,0.70558206,18833.0,18832.0,0.00097268]
[1673579195680,0.70558206,18833.0,18831.0,0.00578152]
[1673579195928,0.84648206,18833.0,18831.0,0.00578152]
[1673579196168,0.84648206,18833.0,18832.0,0.044]
[1673579196424,0.98633469,18833.0,18832.0,0.044]
[1673579196675,0.98633469,18833.0,18832.0,0.088]
[1673579196676,1.81818094,18833.0,18832.0,0.088]
[1673579196931,2.05676747,18833.0,18832.0,0.044]
[1673579197192,2.22982515,18833.0,18832.0,0.044]
[1673579197439,1.59624309,18833.0,18831.0,0.00578152]
[1673579197728,1.05880142,18832.0,18831.0,0.00578152]
[1673579198498,0.73015686,18832.0,18831.0,0.00578152]
[1673579199012,0.74115686,18832.0,18831.0,0.04978152]
[1673579199264,0.74115686,18832.0,18831.0,0.00578152]
[1673579199265,0.73015686,18832.0,18831.0,0.00578152]
[1673579199515,0.73415686,18832.0,18831.0,0.02578152]
[1673579199759,0.73015686,18832.0,18831.0,0.00578152]
[1673579200013,1.30509648,18832.0,18831.0,0.01178152]
[1673579202477,1.14598362,18832.0,18831.0,0.01178152]
[1673579203443,1.30509648,18832.0,18831.0,0.01178152]
[1673579203691,1.14598362,18832.0,18831.0,0.01178152]
[1673579204396,1.30509648,18832.0,18831.0,0.01178152]
[1673579204655,1.14598362,18832.0,18831.0,0.01178152]
[1673579204935,0.71583962,18832.0,18831.0,0.01178152]
[1673579205209,1.04598362,18832.0,18831.0,0.01178152]
[1673579207718,0.71583962,18832.0,18831.0,0.01178152]
[1673579207954,1.04598362,18832.0,18831.0,0.01178152]
[1673579208200,1.25638795,18832.0,18831.0,0.01178152]
[1673579208686,1.75908609,18832.0,18831.0,0.01178152]
[1673579208909,1.89998609,18832.0,18831.0,0.01178152]
[1673579209156,1.55629046,18832.0,18831.0,0.01178152]
[1673579209424,1.77566919,18832.0,18831.0,0.01178152]
[1673579210181,2.41741383,18832.0,18831.0,0.01178152]
[1673579210426,1.77566919,18832.0,18831.0,0.01178152]
[1673579213130,2.47775937,18832.0,18831.0,0.01178152]
[1673579213359,2.300544,18832.0,18831.0,0.01178152]
[1673579213839,2.600544,18832.0,18831.0,0.01178152]
[1673579214583,2.600544,18832.0,18831.0,0.01167932]
[1673579214830,0.00209734,18830.0,18829.0,0.00470099]
[1673579215093,1.09957726,18830.0,18829.0,0.00460724]
[1673579215346,1.19957726,18830.0,18829.0,0.00460724]
[1673579216333,1.21057726,18830.0,18829.0,0.04260724]
[1673579216596,1.0517859,18830.0,18829.0,0.04260724]
[1673579217189,1.21057726,18830.0,18829.0,0.04260724]
[1673579217452,1.0517859,18830.0,18829.0,0.04260724]
[1673579217969,1.17466807,18830.0,18829.0,0.04260724]
[1673579218182,1.33345943,18830.0,18829.0,0.04260724]
[1673579218408,1.17466807,18830.0,18829.0,0.04260724]
[1673579219056,1.33345943,18830.0,18829.0,0.04260724]
[1673579219287,1.17466807,18830.0,18829.0,0.04260724]
[1673579219769,1.33345943,18830.0,18829.0,0.04260724]
[1673579220228,1.73915571,18830.0,18829.0,0.04260724]
[1673579220525,1.0517859,18830.0,18829.0,0.04260724]
[1673579220739,1.59601063,18830.0,18829.0,0.04260724]
[1673579220992,1.26736607,18830.0,18829.0,0.04260724]
[1673579221215,1.59601063,18830.0,18829.0,0.04260724]
[1673579221855,1.59518863,18830.0,18829.0,0.04260724]
[1673579223505,1.45518863,18830.0,18829.0,0.04260724]
[1673579223697,1.12504463,18830.0,18829.0,0.04260724]
[1673579223929,0.79640007,18830.0,18829.0,0.04260724]
[1673579224622,1.12654407,18830.0,18829.0,0.04260724]
[1673579226918,1.45518863,18830.0,18829.0,0.04260724]
[1673579227886,1.12654407,18830.0,18829.0,0.04260724]
[1673579229837,0.79640007,18830.0,18829.0,0.04260724]
[1673579230319,0.55650007,18830.0,18829.0,0.04260724]
[1673579238392,0.0122065,18830.0,18829.0,0.04260724]
[1673579238628,0.0122065,18830.0,18829.0,0.64976775]
[1673579238866,0.0122065,18830.0,18829.0,0.97991175]
[1673579239336,0.0122065,18830.0,18829.0,0.87991175]
[1673579239558,0.0122065,18830.0,18829.0,0.80518175]
[1673579240536,0.0122065,18830.0,18829.0,0.54976775]
[1673579240985,0.0122065,18830.0,18829.0,0.87991175]
[1673579243668,0.0122065,18830.0,18829.0,0.97991175]
[1673579247332,0.0122065,18830.0,18829.0,0.87991175]
[1673579248073,0.0114345,18830.0,18829.0,0.97991175]
[1673579249872,0.0114345,18830.0,18829.0,1.13876669]
[1673579250360,0.0114345,18830.0,18829.0,0.97991175]
[1673579255029,0.0114345,18830.0,18829.0,1.13876669]
[1673579256967,0.0114345,18830.0,18829.0,1.03876669]
[1673579257214,0.0114345,18830.0,18829.0,0.87991175]
[1673579257703,0.0114345,18830.0,18829.0,1.13876669]
[1673579258988,0.0114345,18830.0,18829.0,1.27886669]
[1673579262971,0.0114345,18830.0,18829.0,1.17886669]
[1673579266477,0.0114345,18830.0,18829.0,1.4171491]
[1673579267036,0.0114345,18830.0,18829.0,1.17886669]
[1673579269528,0.0114345,18830.0,18829.0,1.65291304]
[1673579270364,0.0114345,18830.0,18829.0,1.81176798]
[1673579271717,0.01137362,18830.0,18829.0,1.81176798]
[1673579272751,0.01137362,18830.0,18829.0,2.11176798]
[1673579272988,0.01137362,18830.0,18829.0,1.81176798]
[1673579273263,0.01137362,18830.0,18829.0,2.11176798]
[1673579273496,0.01137362,18830.0,18829.0,2.27021763]
[1673579273734,0.01137362,18830.0,18829.0,1.97021763]
[1673579274333,0.01137362,18830.0,18829.0,2.27021763]
[1673579275053,0.01137362,18830.0,18829.0,1.95250775]
[1673579278010,0.01137362,18830.0,18829.0,2.21805775]
[1673579283951,0.01137362,18830.0,18829.0,1.82132569]
[1673579286158,0.01137362,18830.0,18829.0,2.21808387]
[1673579286639,0.01137362,18830.0,18829.0,2.21805255]
[1673579287402,0.01137362,18830.0,18829.0,2.21804763]
[1673579288126,0.01137362,18830.0,18829.0,1.82132569]
[1673579288838,0.01137362,18830.0,18829.0,2.21800751]
[1673579289620,0.01137362,18830.0,18829.0,1.82132569]
[1673579289858,0.01137362,18830.0,18829.0,2.21800123]
[1673579290110,0.01137362,18830.0,18829.0,2.39139568]
[1673579290355,0.01137362,18830.0,18829.0,1.91516518]
[1673579290864,0.01137362,18830.0,18829.0,2.39081805]
[1673579291103,0.00037362,18830.0,18829.0,1.87716518]
[1673579291370,0.00537362,18830.0,18829.0,2.52539788]
[1673579291621,0.00537362,18830.0,18829.0,4.12171795]
[1673579291877,0.00537362,18830.0,18829.0,4.50813468]
[1673579292121,0.00037362,18830.0,18829.0,2.83559508]
[1673579292377,0.00537362,18830.0,18829.0,2.57117835]
[1673579292633,0.00537362,18830.0,18829.0,2.84407835]
[1673579292916,0.00537362,18830.0,18829.0,2.19108897]
[1673579292917,0.00037362,18830.0,18829.0,2.19108897]
[1673579293657,0.00537362,18830.0,18829.0,2.31308897]
[1673579293913,0.00037362,18830.0,18829.0,2.19346931]
[1673579294158,0.00037362,18830.0,18829.0,2.31546931]
[1673579294159,0.00537362,18830.0,18829.0,2.31546931]
[1673579294414,0.00537362,18830.0,18829.0,1.73336931]
[1673579294678,0.01037362,18830.0,18829.0,2.01398817]
[1673579295446,0.00037362,18830.0,18829.0,1.89198817]
[1673579295705,0.0052752,18830.0,18829.0,2.01398817]
[1673579295951,0.0052752,18830.0,18829.0,2.17246142]
[1673579296462,0.0052752,18830.0,18829.0,1.77615009]
[1673579296721,0.0052752,18830.0,18829.0,2.17246142]
[1673579298497,0.0052752,18830.0,18829.0,1.77615009]
[1673579298719,0.0052752,18830.0,18829.0,2.17246142]
[1673579299208,0.0052752,18830.0,18829.0,2.47246142]
[1673579299458,0.0052752,18830.0,18829.0,1.77615009]
[1673579299687,0.0052752,18830.0,18829.0,2.17246142]
[1673579300949,0.0052752,18830.0,18829.0,1.77615009]
[1673579301207,0.0052752,18830.0,18829.0,2.01399288]
[1673579302444,0.0052752,18830.0,18829.0,1.77615009]
[1673579302936,0.0052752,18830.0,18829.0,2.01400355]
[1673579303176,0.0052752,18830.0,18829.0,1.77615009]
[1673579303663,0.0052752,18830.0,18829.0,2.01400268]
[1673579303924,0.0052752,18830.0,18829.0,1.77615009]
[1673579304207,0.0052752,18830.0,18829.0,2.01401096]
[1673579304473,0.0052752,18830.0,18829.0,2.17246142]
[1673579304739,0.0052752,18830.0,18829.0,2.47246142]
[1673579304989,0.0052752,18830.0,18829.0,1.52989552]
[1673579305241,0.005,18830.0,18829.0,1.41538419]
[1673579305485,0.005,18830.0,18829.0,1.89083289]
[1673579305742,0.005,18830.0,18829.0,2.21003289]
[1673579307660,0.005,18830.0,18829.0,2.22477483]
[1673579309959,0.005,18830.0,18829.0,2.08387483]
[1673579310201,0.00334982,18830.0,18829.0,2.08387483]
[1673579310441,0.00334982,18830.0,18829.0,2.74983718]
[1673579310690,0.00334982,18830.0,18829.0,2.08387483]
[1673579311709,0.00334982,18830.0,18829.0,2.34938483]
[1673579311963,0.00334982,18830.0,18829.0,2.91875847]
[1673579314221,0.00334982,18830.0,18829.0,1.89583076]
[1673579314464,0.00334982,18830.0,18829.0,1.66204116]
[1673579314711,0.00334982,18830.0,18829.0,1.34284116]
[1673579315675,0.00334982,18830.0,18829.0,1.64284116]
[1673579316151,0.00334982,18830.0,18829.0,1.95995721]
[1673579316414,0.00334982,18830.0,18829.0,2.29010121]
[1673579316648,0.00334982,18830.0,18829.0,1.99010121]
[1673579317386,0.00334982,18830.0,18829.0,2.29010121]
[1673579317634,0.00334982,18830.0,18829.0,2.29107022]
[1673579317895,0.00334982,18830.0,18829.0,1.99107022]